[Event "Titled Tuesday Blitz January 17 Early 2023"]
[White "Bodnaruk, Anastasia"]
[Black "Boder, Jan"]
[WhiteFideId "4181751"]
[BlackFideId "16243226"]
[WhiteElo "2350"]
[BlackElo "2294"]
[Result "1-0"]
[Round "07"]
[TimeControl "180+2"]
[Date "2023.01.17"]
[WhiteClock "0:00:12"]
[BlackClock "0:00:01"]

1. e4 {[%clk 0:03:00]}  c5 {[%clk 0:02:58]} 2. Nc3 {[%clk 0:03:00]}  g6 {[%clk 0:02:56]} 3. g3 {[%clk 0:02:45]}  Bg7 {[%clk 0:02:56]} 4. Bg2 {[%clk 0:02:46]}  Nc6 {[%clk 0:02:55]} 5. d3 {[%clk 0:02:47]}  e5 {[%clk 0:02:56]} 6. f4 {[%clk 0:02:43]}  d6 {[%clk 0:02:55]} 7. Nf3 {[%clk 0:02:44]}  Nge7 {[%clk 0:02:52]} 8. O-O {[%clk 0:02:42]}  O-O {[%clk 0:02:51]} 9. Nd5 {[%clk 0:02:37]}  Nxd5 {[%clk 0:02:49]} 10. exd5 {[%clk 0:02:37]}  Nd4 {[%clk 0:02:50]} 11. Ne1 {[%clk 0:02:25]}  exf4 {[%clk 0:02:17]} 12. Bxf4 {[%clk 0:02:19]}  Re8 {[%clk 0:02:17]} 13. Rf2 {[%clk 0:02:14]}  Nf5 {[%clk 0:02:02]} 14. c3 {[%clk 0:02:11]}  Ne3 {[%clk 0:02:01]} 15. Bxe3 {[%clk 0:02:10]}  Rxe3 {[%clk 0:02:02]} 16. Nc2 {[%clk 0:02:05]}  Re8 {[%clk 0:02:00]} 17. Qf3 {[%clk 0:02:04]}  Rf8 {[%clk 0:01:46]} 18. Ne3 {[%clk 0:02:03]}  b5 {[%clk 0:01:38]} 19. Rc1 {[%clk 0:01:32]}  Ba6 {[%clk 0:01:31]} 20. h4 {[%clk 0:01:31]}  h5 {[%clk 0:01:29]} 21. Bh3 {[%clk 0:01:09]}  Bc8 {[%clk 0:01:21]} 22. Bxc8 {[%clk 0:01:06]}  Rxc8 {[%clk 0:01:22]} 23. Ng2 {[%clk 0:01:04]}  Rc7 {[%clk 0:01:16]} 24. g4 {[%clk 0:01:04]}  hxg4 {[%clk 0:01:08]} 25. Qxg4 {[%clk 0:01:04]}  Qd7 {[%clk 0:01:09]} 26. Qf3 {[%clk 0:01:00]}  Qd8 {[%clk 0:01:03]} 27. Rcf1 {[%clk 0:00:51]}  Re7 {[%clk 0:01:02]} 28. h5 {[%clk 0:00:50]}  Re5 {[%clk 0:01:01]} 29. Nf4 {[%clk 0:00:46]}  Qh4 {[%clk 0:00:38]} 30. Rg2 {[%clk 0:00:44]}  Rg5 {[%clk 0:00:36]} 31. Rf2 {[%clk 0:00:28]}  Be5 {[%clk 0:00:35]} 32. Nxg6 {[%clk 0:00:23]}  Rxg2+ {[%clk 0:00:22]} 33. Kxg2 {[%clk 0:00:20]}  Qg5+ {[%clk 0:00:12]} 34. Kh1 {[%clk 0:00:17]}  Qc1+ {[%clk 0:00:07]} 35. Kg2 {[%clk 0:00:17]}  Qg5+ {[%clk 0:00:07]} 36. Kh3 {[%clk 0:00:16]}  f6 {[%clk 0:00:02]} 37. Rg2 {[%clk 0:00:13]}  Qh6 {[%clk 0:00:01]} 38. Nxe5+ {[%clk 0:00:12]} 1-0


[Site "https://www.chess.com"]

[Event "Titled Tuesday Blitz January 17 Early 2023"]
[White "Sanchez, Robert"]
[Black "Royal, Shreyas"]
[WhiteFideId "2034360"]
[BlackFideId "448869"]
[WhiteElo "1966"]
[BlackElo "2438"]
[Result "0-1"]
[Round "07"]
[TimeControl "180+2"]
[Date "2023.01.17"]
[WhiteClock "0:00:22"]
[BlackClock "0:01:37"]

1. e4 {[%clk 0:03:00]}  c5 {[%clk 0:02:59]} 2. Nf3 {[%clk 0:03:00]}  d6 {[%clk 0:02:59]} 3. d4 {[%clk 0:03:00]}  cxd4 {[%clk 0:03:00]} 4. Nxd4 {[%clk 0:03:01]}  Nf6 {[%clk 0:03:01]} 5. Nc3 {[%clk 0:03:02]}  a6 {[%clk 0:03:01]} 6. Be3 {[%clk 0:03:02]}  e5 {[%clk 0:03:00]} 7. Nb3 {[%clk 0:03:02]}  Be6 {[%clk 0:03:01]} 8. f3 {[%clk 0:03:02]}  Nbd7 {[%clk 0:03:00]} 9. Qd2 {[%clk 0:03:03]}  Be7 {[%clk 0:02:59]} 10. O-O-O {[%clk 0:03:03]}  Qc7 {[%clk 0:03:00]} 11. g4 {[%clk 0:03:03]}  h6 {[%clk 0:02:59]} 12. h4 {[%clk 0:03:02]}  b5 {[%clk 0:02:59]} 13. Kb1 {[%clk 0:03:01]}  Nc5 {[%clk 0:02:50]} 14. Be2 {[%clk 0:02:49]}  Na4 {[%clk 0:02:47]} 15. Nd5 {[%clk 0:02:43]}  Nxd5 {[%clk 0:02:42]} 16. exd5 {[%clk 0:02:43]}  Bd7 {[%clk 0:02:42]} 17. f4 {[%clk 0:02:30]}  exf4 {[%clk 0:02:40]} 18. Bd4 {[%clk 0:02:24]}  O-O {[%clk 0:02:31]} 19. g5 {[%clk 0:02:19]}  Bf5 {[%clk 0:02:27]} 20. gxh6 {[%clk 0:02:14]}  g6 {[%clk 0:02:27]} 21. h7+ {[%clk 0:02:06]}  Kxh7 {[%clk 0:02:27]} 22. h5 {[%clk 0:02:04]}  g5 {[%clk 0:02:28]} 23. Bd3 {[%clk 0:01:57]}  Qd7 {[%clk 0:02:20]} 24. Rde1 {[%clk 0:01:42]}  Rae8 {[%clk 0:02:17]} 25. Na5 {[%clk 0:01:38]}  Bd8 {[%clk 0:02:02]} 26. Nc6 {[%clk 0:01:38]}  Bb6 {[%clk 0:02:02]} 27. Qg2 {[%clk 0:01:07]}  Bxd4 {[%clk 0:01:54]} 28. Nxd4 {[%clk 0:01:06]}  Bxd3 {[%clk 0:01:54]} 29. cxd3 {[%clk 0:01:07]}  Rg8 {[%clk 0:01:46]} 30. Re4 {[%clk 0:00:50]}  Nc5 {[%clk 0:01:43]} 31. Rxe8 {[%clk 0:00:38]}  Qxe8 {[%clk 0:01:44]} 32. Qd2 {[%clk 0:00:29]}  Qe5 {[%clk 0:01:41]} 33. Nf3 {[%clk 0:00:28]}  Qxd5 {[%clk 0:01:41]} 34. Rf1 {[%clk 0:00:22]}  Qxd3+ {[%clk 0:01:37]} 0-1


[Site "https://www.chess.com"]

[Event "Titled Tuesday Blitz January 17 Early 2023"]
[White "Buchenau, Frank"]
[Black "Tasev, Dejan"]
[WhiteFideId "4604350"]
[BlackFideId "936618"]
[WhiteElo "2222"]
[BlackElo "2205"]
[Result "0-1"]
[Round "07"]
[TimeControl "180+2"]
[Date "2023.01.17"]
[WhiteClock "0:00:12"]
[BlackClock "0:00:40"]

1. e4 {[%clk 0:03:00]}  c5 {[%clk 0:02:56]} 2. Nf3 {[%clk 0:03:00]}  Nc6 {[%clk 0:02:56]} 3. Bb5 {[%clk 0:02:59]}  g6 {[%clk 0:02:55]} 4. Bxc6 {[%clk 0:02:59]}  dxc6 {[%clk 0:02:54]} 5. d3 {[%clk 0:02:59]}  Bg7 {[%clk 0:02:53]} 6. O-O {[%clk 0:02:59]}  e5 {[%clk 0:02:51]} 7. Be3 {[%clk 0:02:56]}  b6 {[%clk 0:02:51]} 8. a4 {[%clk 0:02:53]}  a5 {[%clk 0:02:51]} 9. Na3 {[%clk 0:02:52]}  f6 {[%clk 0:02:49]} 10. Nc4 {[%clk 0:02:51]}  Be6 {[%clk 0:02:46]} 11. Nfd2 {[%clk 0:02:48]}  Nh6 {[%clk 0:02:43]} 12. h3 {[%clk 0:02:30]}  Nf7 {[%clk 0:02:41]} 13. b4 {[%clk 0:02:30]}  axb4 {[%clk 0:02:39]} 14. a5 {[%clk 0:02:29]}  b5 {[%clk 0:02:29]} 15. Nb6 {[%clk 0:02:29]}  Rxa5 {[%clk 0:02:22]} 16. Rxa5 {[%clk 0:02:27]}  Qxb6 {[%clk 0:02:19]} 17. Ra8+ {[%clk 0:02:25]}  Nd8 {[%clk 0:02:17]} 18. Nb3 {[%clk 0:02:18]}  Bf8 {[%clk 0:02:14]} 19. f4 {[%clk 0:02:12]}  Be7 {[%clk 0:01:59]} 20. fxe5 {[%clk 0:02:07]}  fxe5 {[%clk 0:01:59]} 21. Qa1 {[%clk 0:01:57]}  Bxb3 {[%clk 0:01:52]} 22. Qxe5 {[%clk 0:01:53]}  Rf8 {[%clk 0:01:41]} 23. Rxf8+ {[%clk 0:01:49]}  Kxf8 {[%clk 0:01:40]} 24. cxb3 {[%clk 0:01:40]}  Kf7 {[%clk 0:01:27]} 25. Qf4+ {[%clk 0:01:32]}  Ke8 {[%clk 0:01:24]} 26. Qb8 {[%clk 0:01:20]}  Qxb8 {[%clk 0:01:19]} 27. Rxb8 {[%clk 0:01:21]}  Kd7 {[%clk 0:01:19]} 28. Ra8 {[%clk 0:01:16]}  Ne6 {[%clk 0:01:17]} 29. Ra7+ {[%clk 0:01:13]}  Ke8 {[%clk 0:01:13]} 30. Kf2 {[%clk 0:01:06]}  h5 {[%clk 0:01:12]} 31. Ke2 {[%clk 0:01:01]}  Bf6 {[%clk 0:01:12]} 32. Ra6 {[%clk 0:00:47]}  Kd7 {[%clk 0:01:11]} 33. Ra7+ {[%clk 0:00:46]}  Kd6 {[%clk 0:01:09]} 34. g4 {[%clk 0:00:44]}  hxg4 {[%clk 0:01:09]} 35. hxg4 {[%clk 0:00:44]}  Bd4 {[%clk 0:01:08]} 36. Rf7 {[%clk 0:00:36]}  Be5 {[%clk 0:01:00]} 37. Rh7 {[%clk 0:00:28]}  g5 {[%clk 0:00:55]} 38. Rh6 {[%clk 0:00:25]}  Kd7 {[%clk 0:00:55]} 39. Rg6 {[%clk 0:00:25]}  Bf4 {[%clk 0:00:51]} 40. Bf2 {[%clk 0:00:19]}  c4 {[%clk 0:00:46]} 41. dxc4 {[%clk 0:00:18]}  bxc4 {[%clk 0:00:46]} 42. bxc4 {[%clk 0:00:16]}  b3 {[%clk 0:00:47]} 43. Rf6 {[%clk 0:00:13]}  b2 {[%clk 0:00:40]} 44. Rf7+ {[%clk 0:00:12]}  Kc8 {[%clk 0:00:40]} 0-1


[Site "https://www.chess.com"]

[Event "Titled Tuesday Blitz January 17 Early 2023"]
[White "Albertini, Luca"]
[Black "Divya Deshmukh"]
[WhiteFideId "847038"]
[BlackFideId "35006916"]
[WhiteElo "2084"]
[BlackElo "2372"]
[Result "0-1"]
[Round "07"]
[TimeControl "180+2"]
[Date "2023.01.17"]
[WhiteClock "0:01:12"]
[BlackClock "0:02:02"]

1. e4 {[%clk 0:03:00]}  c5 {[%clk 0:02:59]} 2. Nf3 {[%clk 0:02:59]}  e6 {[%clk 0:02:56]} 3. c4 {[%clk 0:02:57]}  d5 {[%clk 0:02:50]} 4. exd5 {[%clk 0:02:56]}  exd5 {[%clk 0:02:51]} 5. d4 {[%clk 0:02:57]}  cxd4 {[%clk 0:02:49]} 6. cxd5 {[%clk 0:02:52]}  Qxd5 {[%clk 0:02:47]} 7. Qxd4 {[%clk 0:02:45]}  Qxd4 {[%clk 0:02:44]} 8. Nxd4 {[%clk 0:02:46]}  Nf6 {[%clk 0:02:44]} 9. Bg5 {[%clk 0:02:34]}  Bb4+ {[%clk 0:02:43]} 10. Nc3 {[%clk 0:02:34]}  Ne4 {[%clk 0:02:41]} 11. Bd2 {[%clk 0:02:17]}  Nxd2 {[%clk 0:02:39]} 12. Kxd2 {[%clk 0:02:18]}  O-O {[%clk 0:02:39]} 13. a3 {[%clk 0:02:18]}  Bc5 {[%clk 0:02:38]} 14. Nb3 {[%clk 0:02:17]}  Bxf2 {[%clk 0:02:35]} 15. Bd3 {[%clk 0:02:12]}  Nc6 {[%clk 0:02:33]} 16. Rhf1 {[%clk 0:02:09]}  Bb6 {[%clk 0:02:31]} 17. Nd5 {[%clk 0:02:08]}  Be6 {[%clk 0:02:30]} 18. Nxb6 {[%clk 0:02:07]}  axb6 {[%clk 0:02:31]} 19. Kc2 {[%clk 0:02:00]}  Rac8 {[%clk 0:02:28]} 20. Nc1 {[%clk 0:01:40]}  Rfd8 {[%clk 0:02:21]} 21. Kb1 {[%clk 0:01:34]}  Ne5 {[%clk 0:02:09]} 22. Bc2 {[%clk 0:01:30]}  Nc4 {[%clk 0:02:06]} 23. Rf2 {[%clk 0:01:26]}  Nd2+ {[%clk 0:02:05]} 24. Rxd2 {[%clk 0:01:22]}  Rxd2 {[%clk 0:02:06]} 25. Be4 {[%clk 0:01:19]}  Rd1 {[%clk 0:02:02]} 26. Bc2 {[%clk 0:01:16]}  Bf5 {[%clk 0:02:02]} 27. Bxf5 {[%clk 0:01:11]}  Rcxc1+ {[%clk 0:02:01]} 28. Ka2 {[%clk 0:01:11]}  Rxa1+ {[%clk 0:02:02]} 29. Kb3 {[%clk 0:01:12]}  Rd2 {[%clk 0:02:02]} 0-1


[Site "https://www.chess.com"]

[Event "Titled Tuesday Blitz January 17 Early 2023"]
[White "Heinemann, Josefine"]
[Black "Ginzburg, Yakov"]
[WhiteFideId "12900460"]
[BlackFideId "4157176"]
[WhiteElo "2289"]
[BlackElo "2405"]
[Result "0-1"]
[Round "07"]
[TimeControl "180+2"]
[Date "2023.01.17"]
[WhiteClock "0:00:01"]
[BlackClock "0:00:04"]

1. e4 {[%clk 0:03:00]}  c5 {[%clk 0:02:58]} 2. Nf3 {[%clk 0:03:00]}  e6 {[%clk 0:02:58]} 3. d4 {[%clk 0:02:57]}  cxd4 {[%clk 0:02:59]} 4. Nxd4 {[%clk 0:02:55]}  Nf6 {[%clk 0:02:59]} 5. Nc3 {[%clk 0:02:54]}  Nc6 {[%clk 0:02:59]} 6. Ndb5 {[%clk 0:02:48]}  Bb4 {[%clk 0:02:57]} 7. a3 {[%clk 0:02:46]}  Bxc3+ {[%clk 0:02:57]} 8. Nxc3 {[%clk 0:02:47]}  d5 {[%clk 0:02:56]} 9. exd5 {[%clk 0:02:46]}  exd5 {[%clk 0:02:56]} 10. Bd3 {[%clk 0:02:45]}  O-O {[%clk 0:02:51]} 11. O-O {[%clk 0:02:44]}  d4 {[%clk 0:02:52]} 12. Ne2 {[%clk 0:02:42]}  h6 {[%clk 0:02:49]} 13. h3 {[%clk 0:02:39]}  Re8 {[%clk 0:02:38]} 14. Re1 {[%clk 0:02:28]}  Qd5 {[%clk 0:02:31]} 15. Nf4 {[%clk 0:02:25]}  Rxe1+ {[%clk 0:02:31]} 16. Qxe1 {[%clk 0:02:26]}  Qe5 {[%clk 0:02:31]} 17. Bd2 {[%clk 0:02:17]}  Bd7 {[%clk 0:02:26]} 18. Qxe5 {[%clk 0:02:12]}  Nxe5 {[%clk 0:02:25]} 19. Re1 {[%clk 0:02:12]}  Nxd3 {[%clk 0:02:19]} 20. Nxd3 {[%clk 0:02:13]}  Bf5 {[%clk 0:02:14]} 21. Re5 {[%clk 0:02:10]}  Bg6 {[%clk 0:01:58]} 22. Re7 {[%clk 0:02:00]}  Rc8 {[%clk 0:01:58]} 23. Ne1 {[%clk 0:01:47]}  Be4 {[%clk 0:01:34]} 24. c3 {[%clk 0:01:40]}  d3 {[%clk 0:00:44]} 25. f3 {[%clk 0:01:24]}  Bg6 {[%clk 0:00:36]} 26. Kf2 {[%clk 0:01:21]}  Nd5 {[%clk 0:00:15]} 27. Rxb7 {[%clk 0:00:47]}  Re8 {[%clk 0:00:15]} 28. Rd7 {[%clk 0:00:46]}  Re2+ {[%clk 0:00:14]} 29. Kg3 {[%clk 0:00:47]}  Rxd2 {[%clk 0:00:12]} 30. Rxd5 {[%clk 0:00:46]}  Rd1 {[%clk 0:00:12]} 31. Rd8+ {[%clk 0:00:38]}  Kh7 {[%clk 0:00:12]} 32. Nxd3 {[%clk 0:00:39]}  Rxd3 {[%clk 0:00:11]} 33. Ra8 {[%clk 0:00:39]}  Rd2 {[%clk 0:00:11]} 34. b4 {[%clk 0:00:38]}  Rc2 {[%clk 0:00:10]} 35. Rxa7 {[%clk 0:00:37]}  Rxc3 {[%clk 0:00:11]} 36. h4 {[%clk 0:00:37]}  Bd3 {[%clk 0:00:11]} 37. a4 {[%clk 0:00:35]}  Rb3 {[%clk 0:00:10]} 38. b5 {[%clk 0:00:34]}  Rb2 {[%clk 0:00:11]} 39. Rxf7 {[%clk 0:00:32]}  Bf1 {[%clk 0:00:11]} 40. Ra7 {[%clk 0:00:28]}  Bxg2 {[%clk 0:00:09]} 41. Kf4 {[%clk 0:00:29]}  Rb3 {[%clk 0:00:09]} 42. Ke5 {[%clk 0:00:25]}  Bxf3 {[%clk 0:00:10]} 43. Kd4 {[%clk 0:00:24]}  Kg6 {[%clk 0:00:10]} 44. Kc5 {[%clk 0:00:24]}  Kf6 {[%clk 0:00:08]} 45. a5 {[%clk 0:00:24]}  g5 {[%clk 0:00:08]} 46. hxg5+ {[%clk 0:00:24]}  hxg5 {[%clk 0:00:09]} 47. a6 {[%clk 0:00:21]}  g4 {[%clk 0:00:08]} 48. Rd7 {[%clk 0:00:18]}  g3 {[%clk 0:00:08]} 49. Rd6+ {[%clk 0:00:18]}  Kf5 {[%clk 0:00:08]} 50. Rd8 {[%clk 0:00:18]}  g2 {[%clk 0:00:08]} 51. Rg8 {[%clk 0:00:18]}  Bg4 {[%clk 0:00:08]} 52. Rf8+ {[%clk 0:00:11]}  Ke4 {[%clk 0:00:08]} 53. Re8+ {[%clk 0:00:11]}  Kf3 {[%clk 0:00:07]} 54. Re1 {[%clk 0:00:11]}  Re3 {[%clk 0:00:06]} 55. Ra1 {[%clk 0:00:08]}  Re8 {[%clk 0:00:04]} 56. a7 {[%clk 0:00:08]}  Kf2 {[%clk 0:00:05]} 57. b6 {[%clk 0:00:04]}  Bf3 {[%clk 0:00:05]} 58. Kd6 {[%clk 0:00:01]}  g1=Q {[%clk 0:00:04]} 0-1


[Site "https://www.chess.com"]

[Event "Titled Tuesday Blitz January 17 Early 2023"]
[White "Golubev, Mikhail"]
[Black "Marn, Jan"]
[WhiteFideId "14100983"]
[BlackFideId "14619245"]
[WhiteElo "2461"]
[BlackElo "2345"]
[Result "1-0"]
[Round "07"]
[TimeControl "180+2"]
[Date "2023.01.17"]
[WhiteClock "0:02:25"]
[BlackClock "0:01:49"]

1. e4 {[%clk 0:03:00]}  e5 {[%clk 0:02:57]} 2. Nf3 {[%clk 0:02:59]}  Nc6 {[%clk 0:02:57]} 3. Bc4 {[%clk 0:02:58]}  Bc5 {[%clk 0:02:57]} 4. c3 {[%clk 0:02:56]}  Nf6 {[%clk 0:02:57]} 5. d4 {[%clk 0:02:57]}  exd4 {[%clk 0:02:57]} 6. cxd4 {[%clk 0:02:57]}  Bb4+ {[%clk 0:02:57]} 7. Nbd2 {[%clk 0:02:58]}  Nxe4 {[%clk 0:02:55]} 8. d5 {[%clk 0:02:58]}  Ne7 {[%clk 0:02:54]} 9. O-O {[%clk 0:02:55]}  Nxd2 {[%clk 0:02:53]} 10. Nxd2 {[%clk 0:02:55]}  d6 {[%clk 0:02:51]} 11. Qa4+ {[%clk 0:02:54]}  Bd7 {[%clk 0:02:37]} 12. Qxb4 {[%clk 0:02:54]}  O-O {[%clk 0:02:37]} 13. Nf3 {[%clk 0:02:44]}  Ng6 {[%clk 0:02:18]} 14. Bg5 {[%clk 0:02:38]}  f6 {[%clk 0:02:18]} 15. Be3 {[%clk 0:02:37]}  b6 {[%clk 0:02:16]} 16. Nd4 {[%clk 0:02:33]}  f5 {[%clk 0:02:14]} 17. Ne6 {[%clk 0:02:32]}  Bxe6 {[%clk 0:02:12]} 18. dxe6 {[%clk 0:02:33]}  Ne7 {[%clk 0:02:13]} 19. Bg5 {[%clk 0:02:28]}  c6 {[%clk 0:02:08]} 20. Rad1 {[%clk 0:02:26]}  c5 {[%clk 0:01:49]} 21. Qd2 {[%clk 0:02:25]} 1-0


[Site "https://www.chess.com"]

[Event "Titled Tuesday Blitz January 17 Early 2023"]
[White "Garv Gaur"]
[Black "Hirneise, Jens"]
[WhiteFideId "45030839"]
[BlackFideId "24614734"]
[WhiteElo "2006"]
[BlackElo "2277"]
[Result "1/2-1/2"]
[Round "07"]
[TimeControl "180+2"]
[Date "2023.01.17"]
[WhiteClock "0:00:33"]
[BlackClock "0:00:44"]

1. d4 {[%clk 0:03:00]}  Nf6 {[%clk 0:02:59]} 2. Nf3 {[%clk 0:03:00]}  d5 {[%clk 0:02:56]} 3. c4 {[%clk 0:03:01]}  dxc4 {[%clk 0:02:55]} 4. g3 {[%clk 0:02:59]}  b6 {[%clk 0:02:52]} 5. Bg2 {[%clk 0:02:59]}  Bb7 {[%clk 0:02:52]} 6. O-O {[%clk 0:02:57]}  e6 {[%clk 0:02:52]} 7. a4 {[%clk 0:02:51]}  Be7 {[%clk 0:02:49]} 8. Qc2 {[%clk 0:02:51]}  O-O {[%clk 0:02:44]} 9. Qxc4 {[%clk 0:02:48]}  Nc6 {[%clk 0:02:39]} 10. Bf4 {[%clk 0:02:46]}  Na5 {[%clk 0:02:31]} 11. Qxc7 {[%clk 0:02:21]}  Qxc7 {[%clk 0:02:28]} 12. Bxc7 {[%clk 0:02:22]}  Rac8 {[%clk 0:02:27]} 13. Bf4 {[%clk 0:02:17]}  Nb3 {[%clk 0:02:21]} 14. Ra2 {[%clk 0:02:16]}  Bxf3 {[%clk 0:02:21]} 15. Bxf3 {[%clk 0:02:14]}  Nxd4 {[%clk 0:02:21]} 16. Nc3 {[%clk 0:02:10]}  Nxf3+ {[%clk 0:02:16]} 17. exf3 {[%clk 0:02:11]}  Rfd8 {[%clk 0:02:16]} 18. a5 {[%clk 0:02:10]}  bxa5 {[%clk 0:02:10]} 19. Rxa5 {[%clk 0:02:09]}  Bb4 {[%clk 0:02:10]} 20. Rxa7 {[%clk 0:02:09]}  Bxc3 {[%clk 0:02:10]} 21. bxc3 {[%clk 0:02:09]}  Rxc3 {[%clk 0:02:10]} 22. Kg2 {[%clk 0:02:08]}  Nd5 {[%clk 0:01:51]} 23. Be5 {[%clk 0:01:28]}  Rc2 {[%clk 0:01:50]} 24. Kg1 {[%clk 0:01:28]}  Re2 {[%clk 0:01:45]} 25. Bd4 {[%clk 0:01:25]}  Rd2 {[%clk 0:01:40]} 26. Be3 {[%clk 0:01:21]}  Nxe3 {[%clk 0:01:38]} 27. fxe3 {[%clk 0:01:22]}  Re2 {[%clk 0:01:38]} 28. e4 {[%clk 0:01:17]}  g5 {[%clk 0:01:32]} 29. Rf2 {[%clk 0:01:17]}  Rdd2 {[%clk 0:01:23]} 30. Rxe2 {[%clk 0:01:16]}  Rxe2 {[%clk 0:01:24]} 31. Ra1 {[%clk 0:01:01]}  Kg7 {[%clk 0:01:23]} 32. Rf1 {[%clk 0:01:01]}  Kf6 {[%clk 0:01:17]} 33. Rf2 {[%clk 0:01:01]}  Re1+ {[%clk 0:01:16]} 34. Kg2 {[%clk 0:01:01]}  Ke5 {[%clk 0:01:16]} 35. Rb2 {[%clk 0:00:59]}  Kf6 {[%clk 0:01:11]} 36. Ra2 {[%clk 0:00:52]}  h5 {[%clk 0:01:08]} 37. h4 {[%clk 0:00:39]}  gxh4 {[%clk 0:00:58]} 38. gxh4 {[%clk 0:00:39]}  e5 {[%clk 0:00:49]} 39. Ra6+ {[%clk 0:00:38]}  Kg7 {[%clk 0:00:49]} 40. Ra5 {[%clk 0:00:37]}  f6 {[%clk 0:00:47]} 41. Ra8 {[%clk 0:00:36]}  Rb1 {[%clk 0:00:44]} 42. Ra7+ {[%clk 0:00:35]}  Kg6 {[%clk 0:00:44]} 43. Ra8 {[%clk 0:00:35]}  Kg7 {[%clk 0:00:44]} 44. Ra7+ {[%clk 0:00:33]}  Kg6 {[%clk 0:00:44]} 45. Ra8 {[%clk 0:00:33]}  Kg7 {[%clk 0:00:44]} 1/2-1/2


[Site "https://www.chess.com"]

[Event "Titled Tuesday Blitz January 17 Early 2023"]
[White "Luukkonen, Tommi"]
[Black "Belov, Alexei"]
[WhiteFideId "501808"]
[BlackFideId "4128206"]
[WhiteElo "2292"]
[BlackElo "2421"]
[Result "0-1"]
[Round "07"]
[TimeControl "180+2"]
[Date "2023.01.17"]
[WhiteClock "0:00:06"]
[BlackClock "0:00:35"]

1. d4 {[%clk 0:02:43]}  Nf6 {[%clk 0:02:58]} 2. Nc3 {[%clk 0:02:41]}  e6 {[%clk 0:02:55]} 3. e4 {[%clk 0:02:40]}  d5 {[%clk 0:02:55]} 4. e5 {[%clk 0:02:40]}  Ne4 {[%clk 0:02:55]} 5. Nxe4 {[%clk 0:02:40]}  dxe4 {[%clk 0:02:55]} 6. Bc4 {[%clk 0:02:39]}  a6 {[%clk 0:02:55]} 7. c3 {[%clk 0:02:34]}  b5 {[%clk 0:02:54]} 8. Bb3 {[%clk 0:02:34]}  Bb7 {[%clk 0:02:54]} 9. Ne2 {[%clk 0:02:32]}  c5 {[%clk 0:02:54]} 10. Be3 {[%clk 0:02:28]}  Nc6 {[%clk 0:02:53]} 11. O-O {[%clk 0:02:24]}  Qh4 {[%clk 0:02:53]} 12. Qe1 {[%clk 0:02:10]}  Be7 {[%clk 0:02:41]} 13. a4 {[%clk 0:02:09]}  O-O {[%clk 0:02:38]} 14. f4 {[%clk 0:02:03]}  exf3 {[%clk 0:02:32]} 15. gxf3 {[%clk 0:01:53]}  cxd4 {[%clk 0:02:24]} 16. cxd4 {[%clk 0:01:52]}  Qh5 {[%clk 0:02:05]} 17. Ng3 {[%clk 0:01:51]}  Qg6 {[%clk 0:02:03]} 18. Qf2 {[%clk 0:01:50]}  Nb4 {[%clk 0:02:02]} 19. Qg2 {[%clk 0:01:30]}  Qd3 {[%clk 0:01:43]} 20. Rae1 {[%clk 0:00:35]}  Qxb3 {[%clk 0:01:35]} 21. Nh5 {[%clk 0:00:35]}  g6 {[%clk 0:01:32]} 22. Bh6 {[%clk 0:00:34]}  Qd3 {[%clk 0:01:23]} 23. Rd1 {[%clk 0:00:22]}  Qf5 {[%clk 0:01:21]} 24. Ng3 {[%clk 0:00:22]}  Qc2 {[%clk 0:01:15]} 25. Rd2 {[%clk 0:00:22]}  Qb3 {[%clk 0:01:09]} 26. Ne4 {[%clk 0:00:19]}  Bxe4 {[%clk 0:01:04]} 27. fxe4 {[%clk 0:00:20]}  Rac8 {[%clk 0:01:00]} 28. Rdf2 {[%clk 0:00:19]}  Rc2 {[%clk 0:00:49]} 29. Bxf8 {[%clk 0:00:18]}  Bxf8 {[%clk 0:00:48]} 30. Rxc2 {[%clk 0:00:15]}  Qxc2 {[%clk 0:00:47]} 31. Qf3 {[%clk 0:00:15]}  Qc7 {[%clk 0:00:44]} 32. d5 {[%clk 0:00:15]}  exd5 {[%clk 0:00:40]} 33. exd5 {[%clk 0:00:16]}  Qc5+ {[%clk 0:00:40]} 34. Kh1 {[%clk 0:00:16]}  Qxd5 {[%clk 0:00:41]} 35. Qxd5 {[%clk 0:00:14]}  Nxd5 {[%clk 0:00:41]} 36. axb5 {[%clk 0:00:15]}  axb5 {[%clk 0:00:40]} 37. Rd1 {[%clk 0:00:15]}  Ne3 {[%clk 0:00:39]} 38. Rd8 {[%clk 0:00:14]}  Nc4 {[%clk 0:00:37]} 39. Rb8 {[%clk 0:00:10]}  b4 {[%clk 0:00:36]} 40. b3 {[%clk 0:00:06]}  Nxe5 {[%clk 0:00:36]} 41. Kg2 {[%clk 0:00:06]}  Nd3 {[%clk 0:00:34]} 42. Kf3 {[%clk 0:00:06]}  Nc1 {[%clk 0:00:35]} 0-1


[Site "https://www.chess.com"]